bitfinex/quotes_SOLUSD_20250803
["timestamp","ask_amount","ask_price","bid_price","bid_amount"]
[1754264447647,90.6,162.1,162.05,6.17093489]
[1754264447808,134.72864611,162.09,162.06,7.37390154]
[1754264448007,133.26,162.09,162.06,7.37390154]
[1754264448312,0.7,162.08,162.07,7.37390154]
[1754264448835,133.26,162.09,162.07,7.37390154]
[1754264449018,89.9,162.09,162.08,7.37390154]
[1754264449217,0.76864611,162.14,162.08,33.37390154]
[1754264449419,239.7,162.19,162.08,33.37390154]
[1754264449420,0.7,162.17,162.13,7.37390154]
[1754264449626,44.82864611,162.16,162.14,7.37390154]
[1754264450221,44.85864611,162.16,162.14,7.37390154]
[1754264450741,0.7,162.15,162.14,7.37390154]
[1754264453641,0.7,162.15,162.12,7.37390154]
[1754264453820,60.91333008,162.14,162.11,7.37390154]
[1754264454146,0.7,162.13,162.11,7.37390154]
[1754264454317,43.36,162.12,162.11,7.37390154]
[1754264454640,44.06,162.12,162.11,7.37390154]
[1754264455222,44.06,162.12,162.11,13.54255245]
[1754264455435,43.36,162.12,162.11,7.37390154]
[1754264456028,43.36,162.14,162.11,7.37390154]
[1754264456230,43.36,162.14,162.13,7.37390154]
[1754264457245,44.06,162.14,162.13,7.37390154]
[1754264458336,133.96,162.14,162.13,7.37390154]
[1754264458735,133.96,162.14,162.12,13.54191527]
[1754264459049,0.7,162.13,162.12,13.54191527]
[1754264459627,1.47098624,162.13,162.12,13.54191527]
[1754264459842,0.7,162.13,162.12,13.54191527]
[1754264460246,0.77098624,162.13,162.12,13.54191527]
[1754264460455,133.96,162.14,162.12,13.54191527]
[1754264460630,133.96,162.14,162.13,7.37390154]
[1754264461332,133.96,162.14,162.12,7.37390154]
[1754264461644,0.7,162.13,162.12,7.37390154]
[1754264462024,1.47098624,162.13,162.11,7.37390154]
[1754264462225,0.7,162.12,162.11,7.37390154]
[1754264462522,44.04,162.12,162.11,7.37390154]
[1754264463328,43.34,162.12,162.11,13.54255245]
[1754264463528,44.04,162.12,162.11,6.16865091]
[1754264463729,44.04,162.12,162.11,13.54255245]
[1754264466150,43.34,162.12,162.11,13.54255245]
[1754264467047,43.34,162.13,162.11,13.54255245]
[1754264467265,43.34,162.13,162.12,13.54217195]
[1754264468031,133.24,162.14,162.12,13.54217195]
[1754264468346,89.9,162.14,162.13,7.37390154]
[1754264469331,89.9,162.14,162.13,13.5417915]
[1754264470160,0.03,162.16,162.13,13.5417915]
[1754264470343,0.03,162.16,162.15,33.37390154]
[1754264470540,0.7,162.21,162.15,33.5299015]
[1754264470751,44.04,162.21,162.2,7.37390154]
[1754264471464,44.04,162.21,162.2,13.53912965]
[1754264473037,43.34,162.21,162.2,13.53912965]
[1754264473363,43.34,162.22,162.2,13.53912965]
[1754264473562,44.04,162.22,162.21,7.37390154]
[1754264475544,44.04,162.22,162.21,13.53874957]
[1754264475757,44.04,162.22,162.21,12.82265111]
[1754264476264,0.03,162.23,162.21,12.82265111]
[1754264476478,0.03,162.23,162.22,7.37390154]
[1754264476678,0.72,162.23,162.22,7.37390154]
[1754264477351,0.03,162.23,162.22,7.37390154]
[1754264477747,0.03,162.23,162.22,13.53836954]
[1754264482166,0.03,162.24,162.22,13.53836954]
[1754264482368,0.03,162.26,162.25,26.0]
[1754264482690,0.03,162.26,162.25,33.37390154]
[1754264483475,0.2,162.3,162.25,33.37390154]
[1754264483706,0.2,162.3,162.29,7.37390154]
[1754264484117,0.89,162.3,162.29,13.53571064]
[1754264485610,0.2,162.3,162.29,13.53571064]
[1754264488192,0.2,162.3,162.29,6.1618091]
[1754264488396,0.89,162.3,162.29,13.53571064]
[1754264490799,0.89,162.3,162.28,7.37390154]
[1754264491015,0.69,162.29,162.28,7.37390154]
[1754264492198,0.69,162.29,162.27,7.37390154]
[1754264494626,43.28,162.28,162.27,7.37390154]
[1754264495143,43.97,162.28,162.27,7.37390154]
[1754264496412,43.97,162.28,162.25,7.37390154]
[1754264496617,91.36032106,162.27,162.25,7.37390154]
[1754264496812,0.69,162.26,162.25,7.37390154]
[1754264497701,89.9,162.27,162.25,7.37390154]
[1754264497900,90.59,162.27,162.26,7.37390154]
[1754264498416,90.59,162.27,162.25,6.16305865]
[1754264498723,43.97,162.26,162.24,13.59750451]
[1754264499228,0.69,162.25,162.24,0.06]
[1754264499625,1.46041602,162.25,162.24,0.06]
[1754264501740,1.46041602,162.25,162.24,7.43390154]
[1754264501904,0.77041602,162.25,162.24,7.43390154]
[1754264502304,44.74041602,162.25,162.24,7.43390154]
[1754264505027,44.74041602,162.25,162.24,0.06]
[1754264510822,43.28,162.25,162.24,7.43390154]
[1754264511033,1.4602736,162.28,162.24,7.43390154]
[1754264511224,133.18,162.27,162.26,7.37390154]
[1754264512152,133.87,162.27,162.24,7.43390154]
[1754264512448,0.69,162.26,162.24,7.43390154]
[1754264513830,0.69,162.26,162.25,6.16332819]
[1754264514330,90.59,162.26,162.25,6.16332819]
[1754264516131,90.59,162.26,162.25,7.37390154]
[1754264516349,89.9,162.26,162.25,7.37390154]
[1754264517054,88.9,162.26,162.25,7.37390154]
[1754264517849,88.9,162.26,162.25,13.53722973]
[1754264523854,88.4,162.26,162.25,13.53722973]
[1754264525528,89.09,162.26,162.25,13.53722973]
[1754264527034,89.09,162.26,162.24,0.06]
[1754264527271,0.69,162.25,162.24,7.43390154]
[1754264527471,43.95,162.25,162.24,0.06]
[1754264527765,43.95,162.25,162.15,58.73756001]
[1754264527766,16.78468397,162.24,162.15,58.73756001]
[1754264527967,52.09441254,162.23,162.18,7.37390154]
[1754264528142,52.09441254,162.23,162.16,21.5836211]
[1754264528143,0.69,162.22,162.19,7.37390154]
[1754264528335,43.26,162.21,162.19,7.37390154]
[1754264528540,0.69,162.2,162.19,7.37390154]
[1754264529169,0.69,162.2,162.19,13.53950977]
[1754264529360,0.69,162.2,162.19,7.37390154]
[1754264529664,0.69,162.2,162.18,13.5398348]
[1754264529874,0.69,162.2,162.18,7.37390154]
[1754264530164,43.26,162.23,162.19,7.37390154]
[1754264530366,43.26,162.24,162.22,7.37390154]
[1754264530564,0.69,162.23,162.22,7.37390154]
[1754264530794,0.69,162.23,162.13,12.76181502]
[1754264531091,0.69,162.23,162.21,7.37390154]
[1754264531487,0.69,162.22,162.21,13.53848739]
[1754264532057,133.85,162.24,162.21,13.53848739]
[1754264532258,0.69,162.23,162.21,13.53848739]
[1754264532458,0.69,162.23,162.21,6.16458585]
[1754264532887,44.0505585,162.22,162.19,13.53942917]
[1754264533059,44.0505585,162.22,162.19,6.16552763]
[1754264533370,0.69,162.21,162.19,6.16552763]
[1754264535168,90.61,162.2,162.19,13.53942917]
[1754264535367,133.89,162.2,162.19,13.53942917]
[1754264536186,133.18,162.2,162.18,26.0]
[1754264536359,133.18,162.2,162.17,6.16602833]
[1754264536360,91.38070102,162.19,162.17,6.16602833]
[1754264536565,43.28,162.18,162.15,7.37390154]
[1754264536880,43.99,162.18,162.15,33.37390154]
[1754264537072,1.48079607,162.17,162.15,7.37390154]
[1754264537286,0.71,162.16,162.15,13.54088183]
[1754264537485,43.99,162.16,162.15,13.54088183]
[1754264537669,43.99,162.16,162.13,6.16788996]
[1754264537878,0.71,162.15,162.13,13.5417915]
[1754264538060,44.05079607,162.16,162.13,13.5417915]
[1754264538394,0.71,162.14,162.12,7.37390154]
[1754264538564,0.77098624,162.13,162.06,80.99059923]
[1754264538764,43.28,162.12,162.11,7.37390154]
[1754264538985,43.28,162.12,162.06,80.99059923]
[1754264539181,43.99,162.12,162.11,7.37390154]
[1754264539496,43.99,162.12,162.1,7.37390154]
[1754264539664,0.71,162.11,162.1,13.542933]
[1754264539864,0.71,162.11,162.1,6.16903146]
[1754264542882,0.71,162.11,162.09,32.16933785]
[1754264543081,44.05112893,162.1,162.09,32.16933785]
[1754264543268,44.76112893,162.1,162.08,6.16976411]
[1754264543468,0.71,162.09,162.08,6.16976411]
[1754264543975,44.05112893,162.1,162.08,13.54366565]
[1754264544188,43.99,162.1,162.08,13.54366565]
[1754264545064,43.99,162.1,162.08,6.16976411]
[1754264545266,43.99,162.1,162.08,13.54366565]
[1754264545700,0.71,162.09,162.08,13.54366565]
[1754264545992,0.71,162.09,162.08,6.16976411]
[1754264547195,1.4811765,162.09,162.06,6.17055411]
[1754264547500,43.99,162.08,162.06,13.54445565]
[1754264547803,0.71,162.07,162.06,13.54445565]
[1754264547989,1.48127167,162.07,162.06,6.17055411]
[1754264548375,0.71,162.07,162.06,6.17055411]
[1754264549088,0.71,162.07,162.05,7.37390154]
[1754264549291,44.05131926,162.06,161.98,29.21743086]
[1754264549503,89.9,162.05,162.03,26.0]
[1754264550289,89.9,162.05,162.04,6.17131572]
[1754264550484,43.99,162.06,162.04,6.17131572]
[1754264550690,43.99,162.06,162.05,7.37390154]
[1754264551685,0.77122408,162.08,162.05,7.37390154]
[1754264551686,0.77122408,162.08,162.05,13.54483643]
[1754264551913,44.01,162.07,162.05,13.54483643]
[1754264552287,43.3,162.07,162.06,7.37390154]
[1754264552891,43.3,162.08,162.06,7.37390154]
[1754264553209,43.3,162.08,162.07,7.37390154]
[1754264554214,43.3,162.08,162.07,13.54407492]
[1754264554511,43.3,162.1,162.07,28.96950837]
[1754264554711,44.01,162.1,162.09,7.37390154]
[1754264556020,44.01,162.1,162.09,13.54331359]
[1754264557131,43.3,162.1,162.09,13.54331359]
[1754264559711,43.33,162.1,162.09,13.54331359]
[1754264561210,0.03,162.1,162.09,13.54331359]
[1754264561707,0.74,162.1,162.09,6.16941205]
[1754264561903,0.74,162.1,162.09,13.54331359]
[1754264562306,0.74,162.1,162.09,6.16941205]
[1754264562504,0.74,162.1,162.09,13.54331359]
[1754264563327,1.51112893,162.1,162.08,6.16974541]
[1754264563636,44.01,162.09,162.08,6.16974541]
[1754264564632,44.01,162.09,162.08,13.54364695]
[1754264567416,44.0,162.09,162.08,13.54364695]
[1754264570615,0.7,162.09,162.08,13.54364695]
[1754264570815,44.0,162.09,162.08,13.54364695]
[1754264571216,0.80112893,162.1,162.08,13.54364695]
[1754264571422,0.03,162.1,162.09,7.37390154]
[1754264571735,43.33,162.1,162.09,7.37390154]
[1754264571910,44.03,162.1,162.09,7.37390154]
[1754264572809,43.33,162.1,162.09,7.37390154]
[1754264573438,0.03,162.1,162.09,13.54331359]
[1754264574039,0.03,162.1,162.09,39.54331359]
[1754264574231,0.73,162.1,162.09,39.54331359]
[1754264575111,0.03,162.1,162.09,7.37390154]
[1754264576630,0.73,162.1,162.09,13.54331359]
[1754264577225,0.73,162.1,162.09,39.54331359]
[1754264578231,0.73,162.1,162.09,26.0]
[1754264578546,1.50112893,162.1,162.08,13.54361061]
[1754264578833,43.28,162.09,162.08,13.54361061]
[1754264579340,43.98,162.09,162.08,13.54361061]
[1754264581336,44.01,162.09,162.08,13.54361061]
[1754264581943,44.01,162.09,162.08,7.37390154]
[1754264582163,89.9,162.08,162.06,32.170458]
[1754264582333,89.9,162.08,162.03,15.42858106]
[1754264582334,44.75127167,162.07,162.05,6.17087327]
[1754264582826,44.05127167,162.07,162.05,6.17087327]
[1754264583028,0.7,162.06,162.05,6.17087327]
[1754264584442,0.7,162.06,162.04,7.37390154]
[1754264584751,43.28,162.05,162.04,7.37390154]
[1754264585313,43.28,162.05,162.04,6.17131572]
[1754264585515,43.28,162.05,162.04,13.54521726]
[1754264589242,43.98,162.05,162.04,13.54521726]
[1754264589432,43.28,162.05,162.04,13.54521726]
[1754264594151,193.08,162.06,162.04,6.17131572]
[1754264594354,193.08,162.06,162.05,7.37390154]
[1754264595142,193.08,162.06,162.05,13.54483643]
[1754264595454,149.8,162.06,162.05,13.54483643]
[1754264596358,150.52,162.06,162.05,13.54483643]
[1754264601663,150.52,162.06,162.03,6.17169659]
[1754264601975,149.8,162.06,162.05,33.37390154]
[1754264602165,193.08,162.06,162.05,33.37390154]
[1754264602539,193.8,162.06,162.05,33.37390154]
[1754264603630,193.8,162.06,162.0,0.06]
[1754264603631,149.8,162.05,162.0,0.06]
[1754264603834,43.28,162.04,162.03,7.37390154]
[1754264604035,43.28,162.04,162.02,7.37390154]
[1754264604266,0.72,162.03,162.02,7.37390154]
[1754264605181,0.72,162.03,162.02,26.0]
[1754264605182,1.49146207,162.03,162.02,26.0]
[1754264605340,1.49146207,162.03,162.01,7.37390154]
[1754264605642,44.0,162.02,162.01,7.37390154]
[1754264606983,44.0,162.02,162.01,13.54623988]
[1754264608773,44.0,162.02,162.01,6.17233834]
[1754264608962,44.0,162.02,162.01,13.54623988]
[1754264609397,44.0,162.02,162.01,26.0]
[1754264609568,44.77150969,162.02,162.0,0.06]
[1754264609767,0.72,162.01,162.0,26.06]
[1754264610490,0.72,162.01,162.0,0.06]
[1754264610788,1.49155731,162.01,162.0,0.06]
[1754264616901,0.77155731,162.01,162.0,0.06]
[1754264617082,1.49155731,162.01,162.0,0.06]
[1754264617887,76.29262823,161.98,161.96,26.0]
[1754264618082,76.29262823,161.97,161.96,26.0]
[1754264618796,76.29262823,161.97,161.95,15.43647985]
[1754264619097,76.29262823,161.97,161.96,6.17436404]
[1754264619298,76.29262823,161.97,161.96,7.37390154]
[1754264619498,76.29262823,161.96,161.94,7.37390154]
[1754264619674,119.57262823,161.96,161.94,7.37390154]
[1754264619870,0.72,161.95,161.89,6.17691544]
[1754264620080,43.28,161.94,161.93,7.37390154]
[1754264620383,44.0,161.94,161.93,7.37390154]
[1754264623310,44.0,161.94,161.9,26.0]
[1754264623609,1.49193849,161.93,161.91,7.37390154]
[1754264623813,43.98,161.92,161.91,7.37390154]
[1754264624318,43.28,161.92,161.89,7.37390154]
[1754264624550,1.47203384,161.91,161.89,7.37390154]
[1754264624690,0.7,161.9,161.89,7.37390154]
[1754264625799,44.12,161.9,161.89,7.37390154]
[1754264626816,43.42,161.9,161.89,7.37390154]
[1754264628302,76.29262823,161.89,161.88,7.37390154]
[1754264628504,76.99262823,161.89,161.88,7.37390154]
[1754264630309,76.99262823,161.89,161.87,33.43390154]
[1754264630506,76.99262823,161.88,161.87,33.43390154]
[1754264631312,76.99262823,161.88,161.87,0.06]
[1754264632061,120.41262823,161.88,161.87,0.06]
[1754264634832,119.71262823,161.88,161.87,7.43390154]
[1754264635334,120.41262823,161.88,161.87,7.43390154]
[1754264635926,120.41262823,161.88,161.87,13.61169853]
[1754264636129,76.29262823,161.88,161.87,13.61169853]
[1754264637051,119.71262823,161.92,161.9,26.0]
[1754264637251,76.29262823,161.92,161.91,7.37390154]
[1754264637853,76.29262823,161.92,161.91,13.5501723]
[1754264640242,193.92,161.96,161.91,13.5501723]
[1754264640458,149.8,161.96,161.95,7.37390154]
[1754264640640,43.42,161.98,161.95,7.37390154]
[1754264640842,0.03,162.01,161.97,7.37390154]
[1754264641042,0.03,162.01,162.0,7.37390154]
[1754264641259,0.03,162.01,162.0,33.37390154]
[1754264642052,0.73,162.01,162.0,39.54674104]
[1754264642540,0.03,162.01,162.0,39.54674104]
[1754264642848,0.73,162.01,162.0,39.54674104]
[1754264645646,0.73,162.01,162.0,33.37390154]
[1754264645879,0.73,162.01,162.0,26.0]
[1754264646188,44.25,162.01,161.98,7.37390154]
[1754264646484,0.7,162.0,161.97,6.17368937]
[1754264646659,0.7,162.0,161.96,39.54818288]
[1754264646660,0.77165257,161.99,161.96,39.54818288]
[1754264646858,0.7,161.98,161.96,39.54818288]
[1754264647093,43.5,161.98,161.97,7.37390154]
[1754264647281,0.7,161.97,161.96,32.17428134]
[1754264647455,43.5,161.98,161.96,39.54818288]
[1754264647650,43.5,161.98,161.97,7.37390154]
[1754264647983,1.47165257,161.99,161.97,7.37390154]
[1754264648279,0.77165257,161.99,161.97,7.37390154]
[1754264648465,0.7,161.98,161.97,7.37390154]
[1754264649051,44.22,161.98,161.97,7.37390154]
[1754264649272,43.52,161.98,161.97,7.37390154]
[1754264649480,44.22,161.98,161.96,6.17434998]
[1754264649653,43.52,161.98,161.97,7.37390154]
[1754264650053,43.52,161.98,161.96,26.0]
[1754264650253,1.47174785,161.97,161.96,33.37390154]
[1754264650482,1.47174785,161.97,161.96,7.37390154]
[1754264650997,1.47174785,161.97,161.96,13.54826558]
[1754264651764,1.47174785,161.97,161.96,7.37390154]
[1754264652182,1.47174785,161.97,161.94,6.17503712]
[1754264652381,44.2,161.96,161.94,13.54893866]
[1754264652572,0.7,161.95,161.94,13.54893866]
[1754264653361,1.47165257,161.99,161.94,13.54893866]
[1754264653568,43.48,161.98,161.97,7.37390154]
[1754264653988,44.14,161.98,161.96,7.37390154]
[1754264654186,0.66,161.97,161.96,7.37390154]
[1754264655104,0.66,161.97,161.96,13.54826558]
[1754264655998,43.48,161.98,161.96,13.54826558]
[1754264656380,239.7,161.97,161.96,13.54826558]
[1754264656970,0.03,162.0,161.96,54.98417568]
[1754264657311,0.03,162.0,161.99,7.37390154]
[1754264658207,0.03,162.0,161.99,13.5471221]
[1754264659887,0.66,162.06,162.02,26.0]
[1754264660114,44.12,162.06,162.02,33.37390154]
[1754264660481,0.03,162.08,162.02,33.37390154]
[1754264660681,0.03,162.08,162.07,7.37390154]
[1754264661188,0.69,162.08,162.07,7.37390154]
[1754264661383,0.69,162.08,162.07,13.54407492]
[1754264662585,1.46122408,162.08,162.03,15.42836698]
[1754264662786,44.12,162.07,162.05,7.37390154]
[1754264663006,0.66,162.06,162.05,7.37390154]
[1754264663596,0.66,162.06,162.05,13.54483643]
[1754264663801,1.43131926,162.06,162.04,13.54516948]
[1754264664184,0.66,162.05,162.04,13.54516948]
[1754264664594,0.66,162.05,162.04,6.17126794]
[1754264665396,0.66,162.05,162.04,13.54516948]
[1754264666400,117.30371095,162.05,162.04,13.54516948]
[1754264668006,160.72371095,162.05,162.04,13.54516948]
[1754264668701,160.75371095,162.05,162.04,13.54516948]
[1754264673009,116.64371095,162.04,162.02,13.54591873]
[1754264673216,160.02371095,162.03,162.02,13.54591873]
[1754264673386,160.68371095,162.03,162.02,13.54591873]
[1754264675188,50.35408127,162.01,162.0,15.43167929]
[1754264675418,50.35408127,162.01,162.0,22.80558083]
[1754264676908,50.35408127,162.01,162.0,28.97842033]
[1754264677815,160.68371095,162.03,162.02,13.54597906]
[1754264678914,116.64371095,162.03,162.02,13.54597906]
[1754264680197,116.64371095,162.03,162.02,39.54597906]
[1754264682101,0.03,162.05,162.02,13.54597906]
[1754264682305,0.03,162.05,162.04,33.37390154]
[1754264683521,149.8,162.07,162.04,39.54521726]
[1754264683716,149.8,162.07,162.06,7.37390154]
[1754264687525,150.5,162.07,162.05,6.17093489]
[1754264687702,150.5,162.07,162.06,7.37390154]
[1754264688831,193.8,162.07,162.06,7.37390154]
[1754264689016,193.8,162.07,162.05,13.54483643]
[1754264689207,193.1,162.07,162.05,13.54483643]
[1754264689409,0.7,162.06,162.05,13.54483643]
[1754264691126,193.1,162.07,162.05,13.54483643]
[1754264691423,193.1,162.07,162.06,7.37390154]
[1754264692224,193.8,162.07,162.06,7.37390154]
[1754264693612,193.8,162.07,162.06,13.54445565]
[1754264696018,193.8,162.07,162.05,7.37390154]
[1754264696221,0.7,162.06,162.05,6.17084123]
[1754264697717,83.72868428,162.04,162.03,7.43390154]
[1754264697918,127.72868428,162.04,162.03,7.43390154]
[1754264698118,44.0,162.04,162.03,0.06]
[1754264699552,44.0,162.04,162.03,6.23169659]
[1754264701142,51.37390154,162.04,162.03,0.06]
[1754264701456,16.78468397,162.03,161.96,18.555745]
[1754264701627,7.37390154,161.99,161.93,22.87197338]
[1754264701821,44.0,161.98,161.95,7.37390154]
[1754264702015,44.0,161.97,161.95,7.37390154]
[1754264702331,0.7,161.96,161.95,6.17441476]
[1754264702522,0.7,161.96,161.94,6.17504567]
[1754264702717,43.3,161.95,161.93,6.23547138]
[1754264702920,0.7,161.94,161.93,6.23547138]
[1754264704433,0.7,161.94,161.93,0.06]
[1754264705437,0.7,161.94,161.91,13.0701723]
[1754264705619,43.3,161.93,161.91,13.0701723]
[1754264706453,43.3,161.93,161.92,13.54979086]
[1754264711762,89.9,161.95,161.94,26.0]
[1754264711949,89.9,161.95,161.94,33.43390154]
[1754264712740,89.9,161.95,161.94,33.37390154]
[1754264713144,89.9,161.95,161.94,39.54902813]
[1754264714477,90.55,161.95,161.94,32.17512659]
[1754264714836,90.55,161.95,161.94,6.17512659]
[1754264715242,90.55,161.95,161.94,32.17512659]
[1754264715451,193.77,161.95,161.94,26.0]
[1754264716973,193.77,161.95,161.94,0.06]
[1754264721408,50.23074847,161.9,161.89,15.50213386]
[1754264721710,43.97,161.95,161.89,15.50213386]
[1754264721711,150.45,161.93,161.89,22.8160354]
[1754264721903,150.45,161.93,161.92,7.37390154]
[1754264722996,149.8,161.93,161.92,7.37390154]
[1754264723188,10.03,162.04,161.92,7.37390154]
[1754264723189,90.55,161.99,161.92,50.75390154]
[1754264723482,89.9,161.98,161.96,26.0]
[1754264723682,89.9,161.97,161.96,26.0]
[1754264724488,89.9,161.97,161.96,33.37390154]
[1754264725605,89.9,161.97,161.96,39.54826558]
[1754264726783,57.43365026,161.97,161.96,39.60826558]
[1754264727097,43.97,162.01,161.96,55.04417568]
[1754264727274,43.97,162.01,162.0,7.37390154]
[1754264727468,0.65,162.03,162.0,13.54674104]
[1754264727689,0.65,162.03,162.02,7.37390154]
[1754264728680,0.65,162.03,162.0,6.1728395]
[1754264728887,43.35,162.04,162.0,6.1728395]
[1754264728888,43.35,162.04,162.02,7.37390154]
[1754264729606,0.65,162.03,162.02,7.37390154]
[1754264729809,0.65,162.03,162.01,6.17210035]
[1754264730316,0.65,162.03,162.01,13.54600189]
[1754264730617,44.12141446,162.04,162.01,13.54600189]
[1754264730790,43.35,162.04,162.02,7.37390154]
[1754264731304,0.65,162.03,162.01,13.54600189]
[1754264731508,76.35399811,162.01,162.0,26.0]
[1754264731701,76.35399811,162.01,162.0,33.37390154]
[1754264732214,77.00399811,162.01,162.0,26.0]
[1754264732418,77.00399811,162.01,162.0,39.54674104]
[1754264733117,149.8,162.0,161.96,6.17436404]
[1754264733287,90.55,161.99,161.98,7.37390154]
[1754264733705,90.55,161.99,161.98,13.54750321]
[1754264736215,90.55,161.99,161.98,7.37390154]
[1754264737402,89.9,161.99,161.98,7.37390154]
[1754264737910,89.9,161.99,161.98,7.43390154]
[1754264738420,89.9,161.99,161.98,13.60750321]
[1754264738796,89.9,161.99,161.98,13.54750321]
[1754264739114,149.8,162.0,161.98,13.54750321]
[1754264739299,149.8,162.0,161.99,7.37390154]
[1754264740421,149.8,162.0,161.99,13.5471221]
[1754264743834,150.48,162.0,161.99,13.5471221]
[1754264744622,149.8,162.0,161.99,13.5471221]
[1754264745022,76.3528779,161.98,161.97,0.06]
[1754264745228,76.3528779,161.98,161.97,7.43390154]
[1754264746713,76.3528779,161.98,161.97,13.60788437]
[1754264747103,45.29321952,161.98,161.97,13.60788437]
[1754264747336,14.389223,161.98,161.97,39.60788437]
[1754264749136,14.389223,161.98,161.97,13.60788437]
[1754264753926,15.069223,161.98,161.97,13.60788437]
[1754264754122,15.069223,161.98,161.97,39.60788437]
[1754264754750,15.069223,161.98,161.97,0.06]
[1754264755251,15.069223,161.98,161.97,6.23398283]
[1754264756437,58.369223,161.98,161.97,13.60788437]
[1754264757357,58.369223,161.98,161.97,6.23398283]
[1754264757726,58.369223,161.98,161.97,0.06]
[1754264758541,59.1409232,161.98,161.97,0.06]
[1754264758749,58.369223,161.98,161.97,0.06]
[1754264763052,50.29181405,161.95,161.93,15.43840299]
[1754264763229,149.8,161.97,161.94,7.37390154]
[1754264763431,89.93,162.0,161.96,7.37390154]
[1754264763655,58.84230604,162.0,161.99,7.37390154]
[1754264763829,27.43049008,162.0,161.99,7.43390154]
[1754264764231,27.43049008,162.0,161.99,7.37390154]
[1754264764957,27.43049008,162.0,161.99,13.5471221]
[1754264767546,0.03,162.01,161.99,13.6071221]
[1754264767864,0.03,162.02,162.01,26.0]
[1754264768042,0.03,162.02,162.01,33.37390154]
[1754264768660,0.03,162.02,162.01,35.84754154]
[1754264768859,0.03,162.02,162.01,42.02000003]
[1754264769152,0.03,162.03,162.01,42.08000003]
[1754264769359,0.03,162.03,162.02,7.37390154]
[1754264770965,0.03,162.03,162.02,13.54597906]
[1754264770966,0.71,162.03,162.02,13.54597906]
[1754264771759,0.71,162.03,162.02,6.17207752]
[1754264773231,0.71,162.03,162.02,13.54597906]
[1754264775266,0.03,162.03,162.02,13.54597906]
[1754264775765,118.87766158,162.04,162.02,13.54597906]
[1754264775949,118.87766158,162.04,162.03,39.54559813]
[1754264778061,0.03,162.06,162.05,26.0]
[1754264778365,0.03,162.06,162.05,33.37390154]
[1754264779060,0.03,162.06,162.05,39.54483643]
[1754264779271,0.03,162.08,162.05,39.54483643]
[1754264779572,0.03,162.08,162.07,7.37390154]
[1754264780360,0.75,162.08,162.07,7.37390154]
[1754264781169,0.03,162.08,162.07,13.54407492]
[1754264783274,0.75,162.08,162.07,13.54407492]
[1754264783842,0.03,162.09,162.07,13.54407492]
[1754264784056,0.03,162.09,162.08,33.37390154]
[1754264784263,0.03,162.1,162.09,32.16941205]
[1754264784468,1e-08,162.1,162.09,39.54331359]
[1754264784670,1e-08,162.1,162.09,39.60331359]
[1754264785076,1e-08,162.11,162.09,82.88331359]
[1754264785254,43.48,162.15,162.13,26.0]
[1754264785574,0.2,162.15,162.14,7.37390154]
[1754264785950,0.2,162.15,162.13,33.37390154]
[1754264786153,0.2,162.15,162.14,26.0]
[1754264786569,0.2,162.15,162.14,13.54141109]
[1754264786743,0.92,162.15,162.14,39.54141109]
[1754264792559,0.2,162.15,162.14,39.54141109]
[1754264793664,0.2,162.15,162.14,13.54141109]
[1754264795489,86.32263258,162.16,162.15,26.0]
[1754264795664,86.32263258,162.16,162.15,33.37390154]
[1754264796674,86.32263258,162.16,162.15,51.90786454]
[1754264797869,86.32263258,162.16,162.15,58.07499374]
[1754264798483,0.2,162.17,162.15,58.07499374]
[1754264798794,0.92,162.17,162.16,7.37390154]
[1754264798967,0.2,162.17,162.16,7.37390154]
[1754264799582,0.92,162.17,162.16,7.37390154]
[1754264799972,0.92,162.17,162.16,13.54065042]
[1754264800173,0.92,162.17,162.16,6.16674888]